bitfinex-derivatives/quotes_SOLF0:USTF0_20230404
["timestamp","ask_amount","ask_price","bid_price","bid_amount"]
[1680639228364,1.75099911,21.005,20.997,23.76]
[1680639228565,1.75099911,21.004,20.997,23.76]
[1680639228764,10.0,21.007,20.997,23.76]
[1680639228960,1.75099657,21.006,20.997,23.76]
[1680639229159,1.75099657,21.005,20.997,23.76]
[1680639229365,1.75099657,21.004,20.997,23.76]
[1680639229559,70.8403,21.008,20.997,23.76]
[1680639229866,11.35645364,21.007,20.997,23.76]
[1680639230067,1.75099518,21.006,20.997,23.76]
[1680639230268,1.75099518,21.005,20.997,23.76]
[1680639230469,1.75099518,21.006,20.997,23.76]
[1680639230767,1.75099518,21.005,20.997,23.76]
[1680639230966,1.75099518,21.004,20.997,23.76]
[1680639231170,10.0,21.007,20.997,23.76]
[1680639231366,1.75099547,21.006,20.997,23.76]
[1680639232171,70.8403,21.008,20.997,23.76]
[1680639232364,1.75068308,21.007,20.997,23.76]
[1680639238172,1.75068308,21.007,20.995,43.8142]
[1680639238173,23.71,21.006,20.995,67.5742]
[1680639238376,10.0,21.005,20.995,67.5742]
[1680639239076,23.71,21.006,20.995,67.5742]
[1680639256384,1.75088276,21.005,20.995,67.5742]
[1680639256680,19.60569006,21.004,20.995,67.5742]
[1680639256883,1.75088276,21.003,20.995,67.5742]
[1680639257182,10.0,21.005,20.995,67.5742]
[1680639257383,11.35664926,21.004,20.995,67.5742]
[1680639257584,1.75102732,21.003,20.995,67.5742]
[1680639257785,10.0,21.005,20.995,67.5742]
[1680639258084,11.35662129,21.004,20.995,67.5742]
[1680639258277,1.75102091,21.003,20.995,67.5742]
[1680639258483,10.0,21.005,20.995,67.5742]
[1680639258778,11.35659745,21.004,20.995,67.5742]
[1680639258981,1.7510173,21.003,20.995,67.5742]
[1680639259182,10.0,21.004,20.995,67.5742]
[1680639259383,1.75102142,21.003,20.995,67.5742]
[1680639259883,37.92259036,21.006,20.995,67.5742]
[1680639260186,11.35660752,21.005,20.995,67.5742]
[1680639260485,21.35660752,21.004,20.995,67.5742]
[1680639260688,1.75101883,21.003,20.995,67.5742]
[1680639261283,10.0,21.005,20.995,67.5742]
[1680639261485,11.35672768,21.004,20.995,67.5742]
[1680639261686,11.35672768,21.003,20.995,67.5742]
[1680639261886,10.0,21.005,20.995,67.5742]
[1680639262086,1.75087859,21.004,20.995,67.5742]
[1680639262285,10.0,21.005,20.995,67.5742]
[1680639262486,1.75087809,21.004,20.995,67.5742]
[1680639263186,37.92259036,21.006,20.995,67.5742]
[1680639263385,11.35573292,21.005,20.995,67.5742]
[1680639263586,11.35573292,21.004,20.995,67.5742]
[1680639263786,37.92259036,21.006,20.995,67.5742]
[1680639263987,11.35572327,21.005,20.995,67.5742]
[1680639264284,11.35572327,21.004,20.995,67.5742]
[1680639264486,37.92259036,21.006,20.995,67.5742]
[1680639264685,11.35570457,21.005,20.995,67.5742]
[1680639264886,21.35570457,21.004,20.995,67.5742]
[1680639265086,10.0,21.004,20.995,67.5742]
[1680639265385,37.92259036,21.006,20.995,67.5742]
[1680639265579,11.35608531,21.005,20.995,67.5742]
[1680639265783,37.92259036,21.006,20.995,67.5742]
[1680639265984,11.35502222,21.005,20.995,67.5742]
[1680639266184,37.92259036,21.006,20.995,67.5742]
[1680639266486,11.35499777,21.005,20.995,67.5742]
[1680639266684,37.92259036,21.006,20.995,67.5742]
[1680639266884,11.35496599,21.005,20.995,67.5742]
[1680639267088,37.92259036,21.006,20.995,67.5742]
[1680639267290,11.35503086,21.005,20.995,67.5742]
[1680639267583,37.92259036,21.006,20.995,43.8142]
[1680639267783,11.35501795,21.005,20.998,23.76]
[1680639267985,10.0,21.008,20.998,23.76]
[1680639268282,11.35501671,21.007,20.998,23.76]
[1680639268487,11.35501671,21.006,20.998,23.76]
[1680639268686,11.35501671,21.005,20.998,23.76]
[1680639268886,23.79282238,21.009,20.998,23.76]
[1680639269085,11.35500256,21.008,20.998,23.76]
[1680639269289,11.35500256,21.007,20.998,23.76]
[1680639269487,11.35500256,21.006,20.998,23.76]
[1680639269787,11.35500256,21.005,20.998,23.76]
[1680639269988,23.79282238,21.009,20.998,23.76]
[1680639270187,11.35499351,21.008,20.998,23.76]
[1680639270492,11.35499351,21.007,21.001,23.53]
[1680639270688,11.35499351,21.006,21.001,23.53]
[1680639270890,11.35499351,21.005,21.001,23.53]
[1680639271188,0.06282238,21.009,21.001,23.53]
[1680639271189,0.06282238,21.009,21.002,10.0]
[1680639271390,0.06282238,21.009,21.001,23.53]
[1680639272090,11.4177808,21.009,21.001,23.53]
[1680639272290,11.35495842,21.008,21.001,23.53]
[1680639272490,11.35495842,21.007,21.001,23.53]
[1680639272685,11.35495842,21.006,21.001,23.53]
[1680639272891,11.35495842,21.005,21.001,23.53]
[1680639273091,0.06282238,21.009,21.001,23.53]
[1680639273692,11.41769089,21.009,21.001,23.53]
[1680639273886,11.35486851,21.008,21.001,23.53]
[1680639274090,11.35486851,21.007,21.001,23.53]
[1680639274391,11.35486851,21.006,21.001,23.53]
[1680639274593,11.35486851,21.005,21.001,23.53]
[1680639274792,9.60411818,21.004,21.001,23.53]
[1680639274992,0.06282238,21.009,21.001,23.53]
[1680639275693,11.41772285,21.009,21.001,23.53]
[1680639275887,11.35490047,21.008,21.001,23.53]
[1680639276087,11.35490047,21.007,21.001,23.53]
[1680639276291,11.35490047,21.006,21.001,23.53]
[1680639276490,11.35490047,21.005,21.001,23.53]
[1680639276695,9.60414528,21.004,21.001,23.53]
[1680639276990,0.06282238,21.009,21.001,23.53]
[1680639277294,0.06282238,21.009,21.003,18.91]
[1680639277487,11.35408379,21.01,21.003,18.91]
[1680639277690,11.35408379,21.009,21.003,18.91]
[1680639277892,9.60345448,21.008,21.003,18.91]
[1680639278096,18.99,21.011,21.003,18.91]
[1680639278396,11.35408413,21.01,21.003,18.91]
[1680639278698,11.35408413,21.009,21.003,18.91]
[1680639278896,11.35408413,21.008,21.003,18.91]
[1680639279098,9.6034561,21.007,21.003,18.91]
[1680639279299,18.99,21.011,21.003,18.91]
[1680639279499,11.35408657,21.01,21.003,18.91]
[1680639279798,11.35408657,21.009,21.003,18.91]
[1680639279993,11.35408657,21.008,21.003,18.91]
[1680639280298,9.60345815,21.007,21.003,18.91]
[1680639280499,18.99,21.011,21.003,18.91]
[1680639280701,11.35408033,21.01,21.003,18.91]
[1680639280900,11.35408033,21.009,21.003,18.91]
[1680639281100,11.35408033,21.008,21.003,18.91]
[1680639281400,10.0,21.01,21.003,18.91]
[1680639281699,11.35407658,21.009,21.003,18.91]
[1680639281900,11.35407658,21.008,21.003,18.91]
[1680639282102,10.0,21.01,21.005,18.91]
[1680639282291,21.35407523,21.009,21.005,18.91]
[1680639282498,11.35407523,21.008,21.005,18.91]
[1680639282693,10.0,21.007,21.005,18.91]
[1680639283902,10.0,21.009,21.005,18.91]
[1680639284200,11.35408903,21.008,21.005,18.91]
[1680639284501,10.0,21.007,21.001,18.91]
[1680639285001,172.39,21.009,21.001,18.91]
[1680639285203,11.35409266,21.008,21.001,18.91]
[1680639285400,10.0,21.007,21.001,18.91]
[1680639285799,28.99,21.009,21.001,18.91]
[1680639286102,11.35409912,21.008,21.001,18.91]
[1680639286301,28.99,21.009,21.001,18.91]
[1680639286502,9.60346151,21.008,21.001,18.91]
[1680639286703,10.0,21.007,21.001,18.91]
[1680639286997,28.99,21.009,21.001,18.91]
[1680639287303,10.0,21.007,21.001,18.91]
[1680639287803,28.99,21.009,21.001,18.91]
[1680639288105,9.60345384,21.008,21.001,18.91]
[1680639288399,10.0,21.007,21.001,18.91]
[1680639288603,28.99,21.009,21.001,18.91]
[1680639288804,9.60345115,21.008,21.001,18.91]
[1680639289103,10.0,21.007,21.001,18.91]
[1680639289304,10.0,21.008,21.001,18.91]
[1680639289495,18.99,21.009,21.001,18.91]
[1680639289701,9.60344941,21.008,21.001,18.91]
[1680639290004,10.0,21.007,21.001,18.91]
[1680639290402,18.99,21.009,21.001,18.91]
[1680639290600,9.60345804,21.008,21.001,18.91]
[1680639290801,10.0,21.007,21.001,18.91]
[1680639291098,10.0,21.008,21.001,18.91]
[1680639291405,18.99,21.009,21.001,18.91]
[1680639291598,9.60345521,21.008,21.001,18.91]
[1680639292103,28.54345521,21.008,21.0,18.91]
[1680639292304,18.94,21.008,21.0,18.91]
[1680639302009,18.99,21.007,20.999,18.95677904]
[1680639312216,18.94,21.008,21.0,18.91]
[1680639314620,0.06783727,21.013,21.004,18.89]
[1680639314918,18.99,21.011,21.004,18.89]
[1680639315119,11.35377677,21.01,21.004,18.89]
[1680639315315,18.99,21.011,21.004,18.89]
[1680639315520,11.35378695,21.01,21.004,18.89]
[1680639315719,18.99,21.011,21.004,18.89]
[1680639315921,11.35378606,21.01,21.004,18.89]
[1680639316121,18.99,21.011,21.004,18.89]
[1680639316424,11.35378207,21.01,21.004,18.89]
[1680639316620,18.99,21.011,21.004,18.89]
[1680639316816,11.35378822,21.01,21.004,18.89]
[1680639317020,18.99,21.011,21.004,18.89]
[1680639317220,11.35376513,21.01,21.004,18.89]
[1680639317421,18.99,21.011,21.004,18.89]
[1680639317621,11.35377365,21.01,21.004,18.89]
[1680639317823,0.06783727,21.013,21.007,18.89]
[1680639318023,11.3512518,21.013,21.007,18.89]
[1680639318324,18.99,21.015,21.007,18.89]
[1680639318622,11.35128361,21.014,21.007,18.89]
[1680639318927,11.35128361,21.013,21.007,18.89]
[1680639319222,18.99,21.015,21.007,18.89]
[1680639319418,11.35128558,21.014,21.007,18.89]
[1680639319620,11.35128558,21.013,21.007,18.89]
[1680639319816,18.99,21.015,21.007,18.89]
[1680639320015,11.35132592,21.014,21.007,18.89]
[1680639320222,11.35132592,21.013,21.007,18.89]
[1680639320424,18.99,21.015,21.007,18.89]
[1680639320624,11.35117023,21.014,21.007,18.89]
[1680639320819,11.35117023,21.013,21.007,18.89]
[1680639321123,18.99,21.015,21.007,18.89]
[1680639321322,11.35121717,21.014,21.007,18.89]
[1680639321523,11.35121717,21.013,21.007,18.89]
[1680639321725,18.99,21.015,21.007,18.89]
[1680639321921,11.35124372,21.014,21.007,18.89]
[1680639322122,11.35124372,21.014,21.004,0.06686665]
[1680639322123,11.35124372,21.013,21.009,18.91]
[1680639322315,32.94299346,21.017,21.009,18.91]
[1680639322517,11.35127237,21.016,21.009,18.91]
[1680639322722,11.35127237,21.015,21.009,18.91]
[1680639323026,11.35127237,21.014,21.009,18.91]
[1680639323218,1.7501947,21.013,21.009,18.91]
[1680639323424,32.94299346,21.017,21.009,18.91]
[1680639323623,11.3513082,21.016,21.009,18.91]
[1680639323820,11.3513082,21.015,21.009,18.91]
[1680639324025,11.3513082,21.014,21.009,18.91]
[1680639324225,1.75020057,21.013,21.009,18.91]
[1680639324526,32.94299346,21.017,21.009,18.91]
[1680639324731,11.35136948,21.016,21.009,18.91]
[1680639324933,11.35136948,21.015,21.009,18.91]
[1680639325131,11.35136948,21.014,21.009,18.91]
[1680639325331,1.75021038,21.013,21.009,18.91]
[1680639325532,10.0,21.016,21.009,18.91]
[1680639325733,11.35139508,21.015,21.009,18.91]
[1680639325934,11.35139508,21.014,21.009,18.91]
[1680639326235,11.35139508,21.013,21.009,18.91]
[1680639326534,10.0,21.016,21.009,18.91]
[1680639326832,11.35141442,21.015,21.009,18.91]
[1680639327033,11.35141442,21.014,21.009,18.91]
[1680639327234,1.75021737,21.013,21.009,18.91]
[1680639327435,10.0,21.016,21.009,18.91]
[1680639327630,11.3514318,21.015,21.009,18.91]
[1680639327831,11.3514318,21.014,21.009,18.91]
[1680639328030,1.75022002,21.013,21.009,18.91]
[1680639328334,10.0,21.016,21.009,18.91]
[1680639328633,11.351439,21.015,21.009,18.91]
[1680639328832,11.351439,21.014,21.009,18.91]
[1680639329034,11.351439,21.013,21.009,18.91]
[1680639329338,32.94299346,21.017,21.009,18.91]
[1680639329537,11.35145874,21.016,21.009,18.91]
[1680639329737,21.35145874,21.015,21.009,33.32165249]
[1680639329937,11.35145874,21.014,21.009,33.32165249]
[1680639330137,11.35145874,21.013,21.009,33.32165249]
[1680639330333,10.0,21.015,21.009,33.32165249]
[1680639330638,11.35146755,21.014,21.009,33.32165249]
[1680639330939,11.35146755,21.013,21.009,33.32165249]
[1680639331133,10.0,21.016,21.009,33.32165249]
[1680639331437,11.3514758,21.015,21.009,33.32165249]
[1680639331739,21.3514758,21.014,21.009,33.32165249]
[1680639332039,11.3514758,21.013,21.009,14.41165249]
[1680639332240,1.75022688,21.012,21.007,18.91]
[1680639332440,18.99,21.015,21.007,18.91]
[1680639332636,11.351497,21.014,21.007,18.91]
[1680639332834,11.351497,21.013,21.007,18.91]
[1680639333130,1.75023007,21.012,21.007,18.91]
[1680639333328,18.99,21.015,21.007,33.35954356]
[1680639333638,11.35150328,21.014,21.007,33.35954356]
[1680639333937,11.35150328,21.013,21.007,33.35954356]
[1680639334139,1.75023115,21.012,21.007,33.35954356]
[1680639334339,18.99,21.015,21.007,33.35954356]
[1680639334638,11.35151301,21.014,21.007,33.35954356]
[1680639334839,11.35151301,21.013,21.007,33.35954356]
[1680639335038,1.75023255,21.012,21.007,33.35954356]
[1680639335241,18.99,21.015,21.007,33.35954356]
[1680639335440,11.35152265,21.014,21.007,33.35954356]
[1680639335641,11.35152265,21.013,21.007,33.35954356]
[1680639335841,1.75023404,21.012,21.007,33.35954356]
[1680639336040,18.99,21.015,21.007,33.35954356]
[1680639336342,11.35152901,21.014,21.007,33.35954356]
[1680639336542,11.35152901,21.013,21.007,33.35954356]
[1680639336840,1.75023506,21.012,21.007,33.35954356]
[1680639337038,18.99,21.015,21.007,33.35954356]
[1680639337241,11.3515287,21.014,21.007,33.35954356]
[1680639337434,11.3515287,21.013,21.007,33.35954356]
[1680639337742,18.99,21.015,21.007,33.35954356]
[1680639337943,11.35096704,21.014,21.007,33.35954356]
[1680639338143,11.35096704,21.013,21.007,33.35954356]
[1680639338441,18.99,21.015,21.007,33.35954356]
[1680639338643,11.35103063,21.014,21.007,33.35954356]
[1680639338842,11.35103063,21.013,21.007,33.35954356]
[1680639339142,18.99,21.015,21.007,33.35954356]
[1680639339343,11.35108368,21.014,21.007,33.35954356]
[1680639339542,11.35108368,21.013,21.007,33.35954356]
[1680639339843,18.99,21.015,21.007,33.35954356]
[1680639340043,11.35111974,21.014,21.007,33.35954356]
[1680639340242,11.35111974,21.013,21.007,33.35954356]
[1680639340444,18.99,21.015,21.007,33.35954356]
[1680639340643,11.35114321,21.014,21.007,33.35954356]
[1680639340941,11.35114321,21.013,21.007,33.35954356]
[1680639341144,18.99,21.015,21.007,33.35954356]
[1680639341336,11.3511722,21.014,21.007,33.35954356]
[1680639341541,11.3511722,21.013,21.007,33.35954356]
[1680639341741,14.00299346,21.017,21.01,18.91]
[1680639341935,14.00299346,21.017,21.005,144.1241]
[1680639342142,14.00299346,21.017,21.011,18.89]
[1680639342344,13.93476797,21.017,21.011,18.89]
[1680639342639,18.94,21.019,21.011,18.89]
[1680639342845,11.35025276,21.018,21.011,18.89]
[1680639343144,11.35025276,21.017,21.011,18.89]
[1680639343444,32.96702655,21.019,21.011,18.89]
[1680639343643,11.35028537,21.018,21.011,18.89]
[1680639343842,11.35028537,21.017,21.011,18.89]
[1680639344143,32.96702655,21.019,21.011,18.89]
[1680639344344,11.35029093,21.018,21.011,18.89]
[1680639344546,11.35029093,21.017,21.011,18.89]
[1680639344745,32.96702655,21.019,21.011,18.89]
[1680639345045,11.35031267,21.018,21.011,18.89]
[1680639345344,11.35031267,21.017,21.011,18.89]
[1680639345544,32.96702655,21.019,21.011,18.89]
[1680639345845,11.3503566,21.018,21.011,18.89]
[1680639346145,11.3503566,21.017,21.011,18.89]
[1680639346447,32.96702655,21.019,21.011,18.89]
[1680639346744,11.35035604,21.018,21.011,18.89]
[1680639346945,32.96702655,21.019,21.011,18.89]
[1680639346946,11.35035604,21.017,21.011,18.89]
[1680639347140,32.96702655,21.019,21.011,18.89]
[1680639347447,11.35035064,21.018,21.011,18.89]
[1680639347645,11.35035064,21.017,21.011,18.89]
[1680639347851,32.96702655,21.019,21.011,18.89]
[1680639348046,11.35034424,21.018,21.011,18.89]
[1680639348242,11.35034424,21.017,21.011,18.89]
[1680639348447,32.96702655,21.019,21.011,18.89]
[1680639348746,11.35035481,21.018,21.011,18.89]
[1680639348947,11.35035481,21.017,21.011,18.89]
[1680639349250,32.96702655,21.019,21.011,18.89]
[1680639349449,1.75005572,21.018,21.011,18.89]
[1680639349649,11.35036657,21.018,21.011,18.89]
[1680639349849,1.75005572,21.017,21.011,18.89]
[1680639350149,32.96702655,21.019,21.011,18.89]
[1680639350346,11.35037343,21.018,21.011,18.89]
[1680639350546,1.75005691,21.017,21.011,18.89]
[1680639350747,32.96702655,21.019,21.011,18.89]
[1680639350947,11.35038313,21.018,21.011,18.89]
[1680639351150,1.75005836,21.017,21.011,18.89]
[1680639351349,32.96702655,21.019,21.011,18.89]
[1680639351551,11.35039223,21.018,21.011,18.89]
[1680639351751,1.7500602,21.017,21.011,18.89]
[1680639351952,32.96702655,21.019,21.011,18.89]
[1680639352251,11.35040081,21.018,21.012,18.91]
[1680639352452,1.75006114,21.017,21.012,18.91]
[1680639352652,32.96702655,21.019,21.012,18.91]
[1680639352951,1.74986395,21.018,21.012,18.91]
[1680639362255,1.74986395,21.018,21.011,18.89]
[1680639363052,32.96702655,21.019,21.011,18.89]
[1680639363653,1.74989984,21.018,21.011,18.89]
[1680639367360,32.96702655,21.019,21.011,18.89]
[1680639367860,1.74980966,21.018,21.011,18.89]
[1680639368059,32.96702655,21.019,21.011,18.89]
[1680639368359,1.74980974,21.018,21.011,18.89]
[1680639369062,32.96702655,21.019,21.011,18.89]
[1680639372165,32.96702655,21.019,21.007,10.0]
[1680639372166,14.02702655,21.019,21.014,10.0]
[1680639372466,47.5091,21.02,21.014,10.0]
[1680639372763,47.5091,21.02,21.013,18.89]
[1680639372965,61.88709363,21.02,21.013,18.89]
[1680639373567,1.74985064,21.019,21.013,18.89]
[1680639373768,61.88709363,21.02,21.013,18.89]
[1680639394987,47.5091,21.02,21.013,18.89]
[1680639397791,47.5091,21.02,21.009,0.06317823]
[1680639397792,0.06850692,21.021,21.017,18.89]
[1680639398089,11.34684047,21.024,21.018,10.0]
[1680639398388,1.74952349,21.023,21.017,18.89]
[1680639398588,1.74952349,21.022,21.017,18.89]
[1680639398789,18.99,21.025,21.017,18.89]
[1680639398990,11.34682603,21.024,21.017,18.89]
[1680639399190,1.74950959,21.023,21.017,18.89]
[1680639399492,1.74950959,21.022,21.017,18.89]
[1680639399691,18.99,21.025,21.017,18.89]
[1680639399890,11.34682625,21.024,21.017,18.89]
[1680639400092,1.74950955,21.023,21.017,18.89]
[1680639400293,1.74950955,21.022,21.017,18.89]
[1680639400492,18.99,21.025,21.017,18.89]
[1680639400787,9.59731803,21.024,21.02,18.91]
[1680639400989,14.3338109,21.026,21.02,18.91]
[1680639401188,63.8553,21.028,21.021,10.0]
[1680639401388,1.74935542,21.027,21.02,18.91]
[1680639401992,1.74935542,21.027,21.022,18.91]
[1680639422106,1.74935542,21.027,21.021,18.89]
[1680639433317,9.59656744,21.026,21.021,18.89]
[1680639433718,14.56855016,21.028,21.021,18.89]
[1680639434020,11.34595282,21.027,21.021,18.89]
[1680639434215,19.0035164,21.029,21.021,18.89]
[1680639434216,11.34595282,21.026,21.021,18.89]
[1680639434416,33.08831302,21.029,21.021,18.89]
[1680639434617,11.34595408,21.028,21.021,18.89]
[1680639434812,21.34595408,21.027,21.021,18.89]
[1680639435017,11.34595408,21.026,21.021,18.89]
[1680639435224,10.0,21.027,21.021,18.89]
[1680639435417,11.34595415,21.026,21.021,18.89]
[1680639435623,10.0,21.028,21.021,18.89]
[1680639435922,11.34595478,21.027,21.021,18.89]
[1680639436222,11.34595478,21.026,21.021,18.89]
[1680639436423,10.0,21.028,21.021,18.89]
[1680639436623,11.34593926,21.027,21.021,18.89]
[1680639436821,11.34593926,21.026,21.021,18.89]
[1680639437023,33.08831302,21.029,21.021,18.89]
[1680639437222,21.34593822,21.028,21.021,18.89]
[1680639437422,11.34593822,21.027,21.021,18.89]
[1680639437721,1.74938588,21.026,21.021,18.89]
[1680639437923,10.0,21.028,21.021,18.89]
[1680639438117,11.34580963,21.027,21.021,18.89]
[1680639438321,1.74936614,21.026,21.021,18.89]
[1680639438519,10.0,21.028,21.021,18.89]
[1680639438719,11.34581101,21.027,21.021,18.89]
[1680639438924,1.74936639,21.026,21.021,18.89]
[1680639439123,10.0,21.028,21.021,18.89]
[1680639439427,11.34584245,21.027,21.021,18.89]
[1680639439627,1.74937122,21.026,21.021,18.89]
[1680639439828,10.0,21.028,21.021,18.89]
[1680639440027,11.34584911,21.027,21.021,18.89]
[1680639440228,1.7493722,21.026,21.021,18.89]
[1680639440428,10.0,21.028,21.021,18.89]
[1680639440726,11.34586128,21.027,21.021,18.89]
[1680639440927,1.74937416,21.026,21.021,18.89]
[1680639441127,10.0,21.028,21.021,18.89]
[1680639441329,11.34587094,21.027,21.021,18.89]
[1680639441530,1.74937563,21.026,21.021,18.89]
[1680639441730,10.0,21.028,21.021,18.89]
[1680639442028,10.0,21.026,21.02,18.91]
[1680639442430,10.0,21.027,21.02,18.91]
[1680639442628,11.34587095,21.026,21.02,18.91]
[1680639442823,10.0,21.028,21.02,18.91]
[1680639443032,11.34587497,21.027,21.02,18.91]
[1680639443226,11.34587497,21.026,21.02,18.91]
[1680639443428,33.08831302,21.029,21.02,18.91]
[1680639443627,11.34587685,21.028,21.02,18.91]
[1680639443830,11.34587685,21.027,21.02,18.91]
[1680639444030,11.34587685,21.026,21.02,18.91]
[1680639444329,10.0,21.028,21.02,18.91]
[1680639444529,11.34588147,21.027,21.02,18.91]
[1680639444729,11.34588147,21.026,21.02,18.91]
[1680639444932,10.0,21.028,21.02,18.91]
[1680639445231,11.3458456,21.027,21.02,18.91]
[1680639445432,1.74937171,21.026,21.02,18.91]
[1680639445630,10.0,21.028,21.02,18.91]
[1680639445831,11.34575963,21.027,21.02,18.91]
[1680639446030,1.74935854,21.026,21.02,18.91]
[1680639446225,10.0,21.028,21.02,18.91]
[1680639446429,11.34572248,21.027,21.02,18.91]
[1680639446634,11.34572248,21.026,21.02,18.91]
[1680639446935,10.0,21.028,21.02,18.91]
[1680639447132,11.34575062,21.027,21.02,18.91]
[1680639447436,11.34575062,21.026,21.02,18.91]
[1680639447636,10.0,21.025,21.02,18.91]
[1680639448333,10.0,21.028,21.02,18.91]
[1680639448533,11.34572611,21.027,21.02,18.91]
[1680639448733,21.34572611,21.026,21.02,18.91]
[1680639448934,10.0,21.026,21.02,18.91]
[1680639449232,10.0,21.028,21.02,18.91]
[1680639449434,11.34573476,21.027,21.02,18.91]
[1680639449634,21.34573476,21.026,21.02,18.91]
[1680639449933,10.0,21.028,21.02,18.91]
[1680639450132,11.34571623,21.027,21.02,18.91]
[1680639450333,21.34571623,21.026,21.02,18.91]
[1680639450533,10.0,21.028,21.02,18.91]
[1680639450732,11.34572225,21.027,21.02,18.91]
[1680639451033,11.34572225,21.026,21.02,18.91]
[1680639451232,10.0,21.028,21.02,18.91]
[1680639451435,11.34572414,21.027,21.02,18.91]
[1680639451732,11.34572414,21.026,21.02,18.91]
[1680639451928,10.0,21.028,21.02,18.91]
[1680639452132,10.0,21.026,21.02,18.91]
[1680639454137,18.99,21.028,21.02,18.91]
[1680639454337,11.34571842,21.027,21.02,18.91]
[1680639454537,21.34571842,21.026,21.02,18.91]
[1680639454735,10.0,21.026,21.02,18.91]
[1680639454938,18.99,21.028,21.02,18.91]
[1680639455131,21.34572344,21.027,21.02,18.91]
[1680639455330,11.34572344,21.026,21.02,18.91]
[1680639455531,10.0,21.027,21.02,18.91]
[1680639455739,11.34572785,21.026,21.02,18.91]
[1680639456039,18.99,21.028,21.02,18.91]
[1680639456238,10.0,21.026,21.02,18.91]
[1680639456739,10.0,21.027,21.02,18.91]
[1680639457038,11.34572779,21.026,21.02,18.91]
[1680639457240,18.99,21.028,21.02,18.91]
[1680639457439,11.34573063,21.027,21.02,18.91]
[1680639457638,11.34573063,21.026,21.02,18.91]
[1680639457839,18.99,21.028,21.02,18.91]
[1680639458035,11.34573106,21.027,21.02,18.91]
[1680639458330,11.34573106,21.026,21.02,18.91]
[1680639458533,18.99,21.028,21.02,18.91]
[1680639458730,10.0,21.026,21.02,18.91]
[1680639459539,9.59638101,21.025,21.02,18.91]
[1680639459739,10.0,21.027,21.02,18.91]
[1680639460040,11.34573641,21.026,21.02,18.91]
[1680639460337,9.59638152,21.025,21.02,18.91]
[1680639460541,10.0,21.024,21.018,18.89]
[1680639460939,18.94,21.025,21.018,18.89]
[1680639463540,9.5965352,21.024,21.018,18.89]
[1680639470145,18.99,21.022,21.015,64.0801]
[1680639470339,19.5965352,21.021,21.015,64.0801]
[1680639470544,9.5965352,21.02,21.015,64.0801]
[1680639470944,9.5965352,21.02,21.017,18.91]
[1680639471141,10.0,21.028,21.017,18.91]
[1680639471449,18.94,21.025,21.017,18.91]
[1680639471747,9.59644872,21.024,21.017,18.91]
[1680639472142,9.59644872,21.024,21.018,18.91]
[1680639474943,33.08831302,21.029,21.022,18.89]
[1680639475248,9.59450071,21.028,21.022,18.89]
[1680639476148,9.59450071,21.028,21.025,18.91]
[1680639482052,1.74918629,21.027,21.025,18.91]
[1680639482251,9.59450071,21.026,21.025,18.91]
[1680639483651,9.59450071,21.028,21.025,18.91]
[1680639483851,11.34368771,21.027,21.025,18.91]
[1680639484052,9.59450071,21.026,21.025,18.91]
[1680639484951,9.59450071,21.03,21.025,18.91]
[1680639485154,1.74918322,21.029,21.028,18.89]